Cogmind - Beta 13 @@@ ROGUE MODE // 2024.07.16 @ 11:10:19 Player: Sgt. SmokeWeed Result: Destroyed by Y-45 Defender with Beam Rifle Performance ------------- Evolutions (1) 500 Regions Visited (3) 600 Robots Destroyed (22) 110 Value Destroyed (484) 484 Prototype IDs (0) 0 Alien Tech Used (0) 0 Bonus (60) 60 TOTAL SCORE: 1754 Bonus ------- Follower Combat Kills 60 Cogmind --------- Core Integrity 0/400 Matter 183/300 Energy 99/100 System Corruption 0% Temperature Cool (9) Movement Core (50) Location -9/Materials Parts ------- > --- POWER (1) -------- (None) > --- PROPULSION (2) --- (None) > --- UTILITY (2) ------ (None) > --- WEAPON (4) ------- (None) > --- INVENTORY (5) ---- Ion Engine Mini Grenade Launcher Peak State ------------ > --- POWER ------------ Ion Engine > --- PROPULSION ------- Wheel Wheel > --- UTILITY ---------- (None) > --- WEAPON ----------- Heavy Assault Rifle Rocket Launcher > --- INVENTORY -------- Ion Engine [Rating: 7] Favorites ----------- Power Ion Engine Engine Ion Engine Propulsion Aluminum Leg Leg Aluminum Leg Wheel Wheel Utility None Weapon Light Assault Rifle Energy Gun Medium Laser Energy Cannon Light EM Pulse Cannon Ballistic Gun Light Assault Rifle Launcher Rocket Launcher Build | -11 -10 -10 -9 ------- Run | Yrd Mat Min Mat Slots Evolved 2 | . . . 2 Power . | . . . . Propulsion . | . . . . Utility . | . . . . Weapon 2 | . . . 2 Parts Attached 18 | 5 3 6 4 Power 5 | 1 1 2 1 Engine 5 | 1 1 2 1 Core . | . . . . Reactor . | . . . . Propulsion 5 | 2 . 2 1 Treads . | . . . . Leg 2 | 2 . . . Wheel 3 | . . 2 1 Hover . | . . . . Flight . | . . . . Utility . | . . . . Device . | . . . . Storage . | . . . . Processor . | . . . . Hackware . | . . . . Protection . | . . . . Artifact . | . . . . Weapon 8 | 2 2 2 2 Energy Gun 1 | 1 . . . Energy Cannon 1 | . . . 1 Ballistic Gun 5 | 1 2 1 1 Ballistic Cannon . | . . . . Launcher 1 | . . 1 . Special Weapon . | . . . . Impact Weapon . | . . . . Slashing Weapon . | . . . . Piercing Weapon . | . . . . Special Melee Weapon . | . . . . Unidentified Prototypes . | . . . . Parts Lost 14 | . 1 6 7 Power 4 | . 1 2 1 Propulsion 5 | . . 2 3 Utility . | . . . . Weapon 5 | . . 2 3 Highest Loss Streak 6 | . 1 4 6 To Critical Strikes . | . . . . Average Slot Usage (%) 54 | . 70 47 23 Engine 12 | . 13 13 5 Leg 15 | . 28 6 . Wheel 6 | . . 13 11 Ballistic Gun 17 | . 26 13 1 Naked Turns 80 | . . . 80 Heaviest Build 12 | 8 8 9 12 Greatest Support 26 | 20 20 26 26 Greatest Overweight (x) 1 | . . 1 . Average Overweight (x) . | . . . . Largest Inventory Capacity 5 | 5 5 5 5 Average Capacity 5 | 5 5 5 5 Most Carried 2 | . 1 . 2 Average Carried . | . . . . Final Capacity 5 | 5 5 5 5 Final Carried 2 | . . . 2 Class Distribution -------------------- 100% | Mutant Dominant Class ---------------- Mutant | -10/Materials Mutant | -10/Mines Mutant | -9/Materials Resources | -11 -10 -10 -9 ----------- Run | Yrd Mat Min Mat Matter Collected 472 | 220 124 95 33 Remotely . | . . . . Salvage Created 524 | . 331 143 50 Parts 46 | . 27 11 8 Haulers Intercepted . | . . . . Recyclers Shooed 2 | . . 2 . Parts Field Recycled . | . . . . Retrieved Matter . | . . . . Parts Self-Destructed . | . . . . Prevented . | . . . . Kills | -11 -10 -10 -9 ------- Run | Yrd Mat Min Mat Combat Hostiles Destroyed 18 | . 11 5 2 Guns 16 | . 11 5 . AOE 2 | . . . 2 Classes Destroyed 6 | . 3 1 2 Builder 1 | . . . 1 Tunneler 1 | . . 1 . Watcher 2 | . 1 . 1 Swarmer 9 | . 6 3 . Grunt 8 | . 5 2 1 Sentry 1 | . . . 1 Best Kill Streak 4 | . 3 3 4 Combat Bots Only 3 | . 3 3 2 Max Kills in Single Turn 2 | . 1 1 2 Gunslinging . | . . . . Exploded 1 | . . . 1 Melee . | . . . . Uniques/NPCs Destroyed . | . . . . Combat | -11 -10 -10 -9 -------- Run | Yrd Mat Min Mat Hostile Shots Fired 216 | . 60 46 110 Missed 79 | . 22 14 43 Damage Taken 1462 | . 338 366 758 Core 549 | . 92 48 409 Absorbed by Shields . | . . . . Core Remaining (%) 72 | 100 . 44 . Volleys Fired 109 | . 53 36 20 Largest 2 | . 2 2 2 Hottest 70 | . 70 40 56 Shots Fired 182 | . 106 55 21 Gun 167 | . 106 55 6 Cannon 3 | . . . 3 Launcher 12 | . . . 12 Special . | . . . . Kinetic 158 | . 97 55 6 Thermal 9 | . 9 . . Explosive 12 | . . . 12 Electromagnetic 3 | . . . 3 Robot Hit Streak 9 | . 4 9 3 Robot Miss Streak 5 | . 5 2 2 Penetration Max . | . . . . Secondary Targets 4 | . 2 2 . Max Gunslinging Chain 1 | . 1 1 . Shots Hit Robots 97 | . 46 39 12 Core Hits 48 | . 25 14 9 Critical Kills 1 | . . 1 . Critical Parts Destroyed 2 | . 1 1 . Critical Strikes 3 | . 1 2 . Destroy 3 | . 1 2 . Melee Attacks . | . . . . Impact . | . . . . Slashing . | . . . . Piercing . | . . . . Sneak Attacks . | . . . . Combat Hostiles . | . . . . Follow-up Attacks . | . . . . Damage Inflicted 1147 | . 420 349 378 Guns 784 | . 420 320 44 Cannons 40 | . . . 40 Explosions 277 | . . . 277 Melee . | . . . . Ramming 46 | . . 29 17 Kinetic 709 | . 345 320 44 Thermal 75 | . 75 . . Explosive 277 | . . . 277 Electromagnetic 40 | . . . 40 Impact . | . . . . Slashing . | . . . . Piercing . | . . . . Highest Corruption . | . . . . Average Corruption . | . . . . Corruption Purged . | . . . . Corruption Blocked . | . . . . Overload Shots . | . . . . Overflow Damage . | . . . . Projectiles . | . . . . Explosions . | . . . . Melee . | . . . . Knockbacks . | . . . . Impact . | . . . . Kinetic . | . . . . Secondary . | . . . . Self-Inflicted Damage 62 | . . 14 48 Shots 1 | . . . 1 Rammed 8 | . . 4 4 Targets Rammed 8 | . . 4 4 Kicked . | . . . . Crushed . | . . . . Highest Temperature 150 | . 150 31 28 Average Temperature 34 | . 46 13 12 Received Heat Transfer 381 | . 96 129 156 Siege Activations . | . . . . Robots Corrupted . | . . . . Combat Hostiles . | . . . . Parts Fried . | . . . . Impact Corruptions . | . . . . Robots Melted . | . . . . Combat Hostiles . | . . . . Parts Melted . | . . . . Heat Transferred 222 | . 222 . . Parts Sabotaged . | . . . . Parts Stolen . | . . . . Parts Stripped . | . . . . Power Chain Reactions . | . . . . Alert | -11 -10 -10 -9 ------- Run | Yrd Mat Min Mat Peak Influence 350 | . 247 163 350 Initial 63 | . . 42 63 Average 116 | . 102 106 193 Maximum Alert Level 1 | . 1 . 1 Low Security (%) 91 | 100 97 100 54 Level 1 8 | . 2 . 45 Level 2 . | . . . . Level 3 . | . . . . Level 4 . | . . . . Level 5 . | . . . . High Security . | . . . . Max Security . | . . . . Squads Dispatched 4 | . 2 . 2 Investigation 1 | . 1 . . Extermination . | . . . . Reinforcement 3 | . 1 . 2 Assault . | . . . . Garrison . | . . . . Intercept . | . . . . Searches Triggered . | . . . . Construction Impeded . | . . . . Haulers Reinforced . | . . . . Active Scanning Responses . | . . . . Cargo Convoy Interrupts . | . . . . Stealth | -11 -10 -10 -9 --------- Run | Yrd Mat Min Mat Distress Signals 6 | . 1 . 5 Communications Jammed . | . . . . Distress Signals . | . . . . Times Spotted 54 | . 21 7 26 Peak Tracking Total 12 | . 4 3 12 Tactical Retreats 4 | . . . 4 Traps | -11 -10 -10 -9 ------- Run | Yrd Mat Min Mat Traps Triggered 1 | . 1 . . Indirectly . | . . . . Trap Hack Attempts . | . . . . Triggered . | . . . . Disarmed . | . . . . Reprogrammed . | . . . . Reused . | . . . . Traps Extracted . | . . . . Installed . | . . . . Triggered . | . . . . Machines | -11 -10 -10 -9 ---------- Run | Yrd Mat Min Mat Machines Disabled 2 | . . . 2 Max in Single Turn 1 | . . . 1 Machines Repaired . | . . . . Machines Dismantled . | . . . . Machines Sabotaged . | . . . . Overloaded Fab Kills . | . . . . Hacking | -11 -10 -10 -9 --------- Run | Yrd Mat Min Mat Machines Accessed 2 | . 2 . . Terminals 2 | . 2 . . Fabricators . | . . . . Repair Stations . | . . . . Recycling Units . | . . . . Scanalyzers . | . . . . Garrison Access . | . . . . Total Hacks 2 | . 2 . . Successful 1 | . 1 . . Failed 1 | . 1 . . Catastrophic 1 | . 1 . . Database Lockouts . | . . . . Manual 2 | . 2 . . Terminals 2 | . 2 . . Fabricators . | . . . . Repair Stations . | . . . . Recycling Units . | . . . . Scanalyzers . | . . . . Garrison Access . | . . . . Terminal Hacks 1 | . 1 . . Branch Access Points 1 | . 1 . . Fabricator Hacks . | . . . . Repair Station Hacks . | . . . . Recycling Unit Hacks . | . . . . Scanalyzer . | . . . . Garrison Access Hacks . | . . . . Unauthorized Hacks . | . . . . Terminals . | . . . . Fabricators . | . . . . Repair Stations . | . . . . Recycling Units . | . . . . Scanalyzers . | . . . . Garrison Access . | . . . . Data Cores Recovered . | . . . . Used . | . . . . Hacking Detections 2 | . 2 . . Full Trace Events . | . . . . Feedback Events . | . . . . Feedback Blocked . | . . . . Robot Schematics Acquired . | . . . . Robots Built . | . . . . Authchips . | . . . . Time . | . . . . Total Robot Build Rating . | . . . . Part Schematics Acquired . | . . . . Parts Built . | . . . . Authchips . | . . . . Time . | . . . . Total Part Build Rating . | . . . . Parts Repaired . | . . . . Time . | . . . . Parts Recycled . | . . . . Recycled Matter . | . . . . Retrieved Matter . | . . . . Retrieved Components . | . . . . Parts Scanalyzed . | . . . . Part Schematics Acquired . | . . . . Parts Damaged . | . . . . Bothacking | -11 -10 -10 -9 ------------ Run | Yrd Mat Min Mat Used RIF Installer . | . . . . Robots Hacked . | . . . . Non-combat . | . . . . Combat . | . . . . Robot Hacks Applied . | . . . . Relay Couplers Released . | . . . . Fabnet Peak Effective % . | . . . . Robots Rewired . | . . . . Allies Hacked . | . . . . Hacks Repelled . | . . . . Allies | -11 -10 -10 -9 -------- Run | Yrd Mat Min Mat Total Allies 2 | . . 2 . Largest Group 2 | . . 2 . Highest-Rated Group 39 | . . 39 . Highest-Rated Ally 31 | . . 31 . Total Orders . | . . . . Ally Attacks 6 | . . 6 . Total Damage 86 | . . 86 . Kills 2 | . . 2 . Allies Corrupted . | . . . . Allies Melted . | . . . . Intel | -11 -10 -10 -9 ------- Run | Yrd Mat Min Mat Robot Analysis Total . | . . . . Derelict Logs Recovered . | . . . . Drone Launches . | . . . . Drone Recoveries . | . . . . Exploration | -11 -10 -10 -9 ------------- Run | Yrd Mat Min Mat Turns Passed 1166 | 42 532 386 206 Spaces Moved 894 | 34 322 303 235 Core 179 | 8 . 24 147 Treads . | . . . . Legs 389 | 26 322 41 . Wheels 326 | . . 238 88 Hover . | . . . . Flight . | . . . . Fastest Speed 50 | 50 120 50 50 Average Speed 96 | 103 120 96 62 Slowest Speed 120 | 120 120 120 90 Overloaded Moves . | . . . . Propulsion Burnouts . | . . . . Robots Hopped . | . . . . Cave-ins Triggered . | . . . . Exploration Rate (%) 38 | 3 68 53 29 Regions Visited 3 Branch Regions 1 Pre-discovered Areas . | . . . . Known Exits Taken 1 | . 1 . . Unknown Exits Taken 2 | 1 . 1 . Scrap Searched 1 | . . 1 . Spaces Dug . | . . . . Terrain Destroyed 59 | . . . 59 Melee . | . . . . Projectile . | . . . . AOE 59 | . . . 59 Terrain Rammed . | . . . . Walls Destroyed . | . . . . Machines Disabled . | . . . . Actions | -11 -10 -10 -9 --------- Run | Yrd Mat Min Mat Total 1038 | 38 380 349 271 Wait 9 | . 2 . 7 Move 891 | 33 321 302 235 Hop . | . . . . Pick Up 1 | . . . 1 Fast Attach 15 | 5 1 6 3 Attach 1 | . 1 . . Detach . | . . . . Swap 2 | . 1 . 1 Drop 2 | . 1 1 . Fire 109 | . 53 36 20 Melee . | . . . . Ram 8 | . . 4 4 Kick . | . . . . Crush . | . . . . Escape Stasis . | . . . . Rewire . | . . . . Trap . | . . . . Miscellaneous . | . . . . Route ------- -11/Scrapyard -10/Materials (discovered 3 exits: [*Mat x2] / *Min) -10/Mines -9/Materials (discovered 2 exits: [*Mat] / [*Min]) History --------- Turn | Location | Event 8 | -11/Scrapyard | Discovered new exit (range 15) 43 | -11/Scrapyard | Entered Materials 228 | -10/Materials | Discovered new exit (range 15) 304 | -10/Materials | Build established: Mutant 426 | -10/Materials | Discovered new exit (range 16) 540 | -10/Materials | Identified exit to Mines 575 | -10/Materials | Entered Mines 675 | -10/Mines | Core integrity fell below 50% 717 | -10/Mines | Lost 4 parts (1p2n1w) 947 | -10/Mines | Discovered new exit (range 11) 953 | -10/Mines | Received a Rocket Launcher from a helpful Derelict 961 | -10/Mines | Entered Materials 961 | -9/Materials | Evolved 2 slots: Weapon x2 1048 | -9/Materials | Discovered new exit (range 8) 1103 | -9/Materials | Core integrity fell below 50% 1118 | -9/Materials | Lost 6 parts (1p2n3w) 1145 | -9/Materials | Discovered new exit (range 3) 1150 | -9/Materials | Core integrity fell below 20% 1167 | -9/Materials | Destroyed by Y-45 Defender with Beam Rifle Last Messages --------------- Wheel destroyed. Acquired Lgt. EM Pulse Cannon. S-10 Pest IFF system glitched. S-10 Pest destroyed. Destroyed Flight Unit. Lgt. EM Pulse Cannon destroyed. Wheel destroyed. Slammed into S-10 Pest. R-06 Scavenger collects Lgt. Assault Rifle. Slammed into R-06 Scavenger. U-05 Engineer builds a Wall. Acquired 10 matter. U-05 Engineer builds a Wall. EXIT=FOUND W-16 Scout sends out distress signal. ALERT: Hostiles spotted, dispatching reinforcements to Terminal M006. S-10 Pest destroyed. Acquired Mni. Grenade Launcher. W-16 Scout sends out distress signal. U-05 Engineer lays Concrete. Map ----- +----------------------------------------------------+ | # #???"" # #??????????????????????? | | # #??? # #??????????????????????? | | + ####+### %=#??????????????????????? | | ###### # #??????????????????????? | | ?????# + #??????????????????????? | | ?????# # #??????????????????????? | | ??????# # #### #??????????????????????? | | ??????# # #??# #??????????????????????? | | ????############ #??# #????? ?????????????? | | ????# # #??# #???? #?????????????? | | ????+ % # ##?#w #??? #?????????????? | | ????? " # ##?# #??? #?????????????? | | ##???? # #?# #?? #?????????????? | | ####### +#+### ### #?? #?????????????? | | ## #? #?????????????? | | ##r ## #?????????????? | | """ *= ## # ###???????????? | | """ = ####% ## #???????????? | | """ == # ###### # +???????????? | | # ## # #% #???????????? | | # ###########???????????? | | # "" ## ##?????????????????????? | | + """ # #??????????????????????? | | # """ !## #??????????????????????? | | "" ### # #??????????????????????? | | "" """ #?###+#### # g@#??????????????????????? | | "" R" #???# #####""" #?????????????????????? | | "" """ ##### #???#" #?????????????????????? | | #???#"| #?????????????????????? | | #???#"" < #?????????????????????? | | ########## #???#"| a #?????????????????????? | | #????????# #???#" #?????????????????????? | | #???????##/##+#####""" #?????????????????????? | | ???????# = ##### r##?????????????????????? | | # ??????# %= #???# r #??????????????????????? | | ##??????# #???# ???????????????????????? | | #???????# ! #???# ???????????????????????? | | #???????##########???# ???????????????????????? | | #???????????????????? ???????????????????????? | | #???????????????????? ???????????????????????? | | ??????????????????????? Y ???????????????????????? | | ?????????????????????????????????????????????????? | | ?????????????????????????????????????????????????? | | ?????????????????????????????????????????????????? | | ?????????????????????????????????????????????????? | | ?????????????????????????????????????????????????? | | ?????????????????????????????????????????????????? | | ?????????????????????????????????????????????????? | | ?????????????????????????????????????????????????? | | ?????????????????????????????????????????????????? | +----------------------------------------------------+ Best States ------------- Heat Dissipation 28 Energy Generation 10 Energy Capacity 250 Matter Stores 300 Matter Capacity 300 Sight Range 16 Terrain Scan Density 10 Evasion (%) 55 Item Schematics ----------------- None Robot Schematics ------------------ None Fabricated ------------ Nothing Alien Tech Used ----------------- None Achievements -------------- None Challenges ------------ None Game ------ Seed WaveMetaFlakker Manual? 0 Play Time 00:12:04 Cumulative 34.8 hours Start 2024.07.16 @ 11:00:29 End 2024.07.16 @ 11:10:19 Sessions 1 Manual Loads 0 Difficulty Rogue Special Mode None Game No. 77 Rogue 11 Adventurer 66 Explorer 0 Win Type - Total 0 Types 0/0/0/0/0/0/0/0/0 Lore% 27 Gallery% 30 Achievement% 29 Wizard Run 0 Options --------- Layout 0 ASCII 0 Keyboard 0 Movement Mouse Keybinds 0 Fullscreen 1 Font 24/Smallcaps Map View 76x50 Zoom Use 0% Tactical HUD 0 Map Filters NONE Filters NONE Steam 1 RUN: 53e78c24-dcfa-4f51-b889-5a5b5ab1d223